bitfinex/quotes_BTCUSD_20241002
["timestamp","ask_amount","ask_price","bid_price","bid_amount"]
[1727873815848,1.176244,60885.0,60884.0,0.14632098]
[1727873816047,1.116271,60875.0,60874.0,0.22263863]
[1727873816252,0.266281,60871.0,60868.0,0.24486798]
[1727873816463,0.264306,60862.0,60847.0,0.0822]
[1727873816664,0.96684797,60862.0,60847.0,0.0822]
[1727873816893,0.96483228,60862.0,60847.0,0.0822]
[1727873817113,0.96483228,60862.0,60852.0,0.24486798]
[1727873817316,0.96483228,60862.0,60847.0,0.0822]
[1727873817317,0.383231,60862.0,60847.0,0.0822]
[1727873817518,0.264306,60862.0,60847.0,0.0822]
[1727873817751,0.80313895,60862.0,60847.0,0.0822]
[1727873817920,0.80313895,60862.0,60848.0,0.24486798]
[1727873818093,0.81713895,60862.0,60848.0,0.24486798]
[1727873818593,0.57040695,60862.0,60848.0,0.24486798]
[1727873818977,0.59840695,60862.0,60848.0,0.24486798]
[1727873819184,0.30407767,60862.0,60861.0,0.1725]
[1727873819395,0.30407767,60862.0,60861.0,0.2484]
[1727873819598,0.31807767,60862.0,60861.0,0.2484]
[1727873820011,0.21807767,60862.0,60861.0,0.2484]
[1727873820210,0.05377167,60862.0,60861.0,0.2484]
[1727873820691,0.03977167,60862.0,60861.0,0.2484]
[1727873820897,0.05377167,60862.0,60861.0,0.2484]
[1727873821309,0.164296,60866.0,60861.0,0.2484]
[1727873821510,0.164296,60866.0,60861.0,0.249219]
[1727873821511,0.02576637,60863.0,60861.0,0.249219]
[1727873821725,0.014,60862.0,60861.0,0.249219]
[1727873822391,0.02576637,60863.0,60861.0,0.249219]
[1727873822559,0.001,60862.0,60861.0,0.249219]
[1727873822762,0.17132169,60862.0,60861.0,0.001019]
[1727873822989,0.169306,60862.0,60861.0,0.001019]
[1727873823363,0.164326,60855.0,60843.0,0.164355]
[1727873823585,0.1,60848.0,60842.0,0.24486798]
[1727873823779,0.1,60850.0,60841.0,0.0002]
[1727873823983,0.24486798,60855.0,60841.0,0.0002]
[1727873824200,0.164338,60851.0,60841.0,0.0002]
[1727873824413,0.328668,60852.0,60841.0,0.0002]
[1727873824621,0.164334,60852.0,60842.0,0.1493313]
[1727873824817,0.164339,60850.0,60842.0,0.1493313]
[1727873824992,0.164336,60851.0,60842.0,0.1493313]
[1727873825193,0.164338,60850.0,60841.0,0.0002]
[1727873825621,0.164338,60850.0,60842.0,0.005]
[1727873826075,0.164338,60850.0,60841.0,0.0002]
[1727873826276,0.164341,60849.0,60841.0,0.0002]
[1727873826395,0.328675,60851.0,60842.0,0.2583]
[1727873826592,0.164339,60850.0,60842.0,0.2583]
[1727873826802,0.164339,60850.0,60842.0,0.2563]
[1727873827000,0.164339,60850.0,60842.0,0.2593]
[1727873827210,0.164336,60851.0,60842.0,0.42418182]
[1727873827404,0.328663,60853.0,60842.0,0.42418182]
[1727873827614,0.24486798,60860.0,60852.0,0.243]
[1727873827824,0.24486798,60853.0,60852.0,0.243]
[1727873828110,0.24486798,60860.0,60852.0,0.243]
[1727873828111,0.164326,60855.0,60852.0,0.243]
[1727873828308,0.164325,60855.0,60852.0,0.25110744]
[1727873828535,0.16433,60853.0,60852.0,0.243]
[1727873828735,0.328648,60856.0,60853.0,0.00813193]
[1727873828941,0.328648,60856.0,60852.0,0.25313778]
[1727873828942,0.164327,60855.0,60852.0,0.25313778]
[1727873829145,0.164327,60855.0,60854.0,0.00812609]
[1727873829407,0.164327,60854.0,60853.0,0.00813193]
[1727873829590,0.164327,60854.0,60852.0,0.243]
[1727873829858,0.164327,60854.0,60852.0,0.246]
[1727873830060,0.16433,60853.0,60852.0,0.003]
[1727873831101,0.1,60867.0,60853.0,0.076]
[1727873831335,0.164325,60855.0,60854.0,0.02536]
[1727873831515,0.164325,60855.0,60853.0,0.078]
[1727873831660,0.328625,60860.0,60853.0,0.08]
[1727873831879,0.164317,60858.0,60853.0,0.078]
[1727873832097,0.328679,60850.0,60842.0,0.076]
[1727873832468,0.328661,60853.0,60843.0,0.00328669]
[1727873832687,0.24486798,60852.0,60843.0,0.0277064]
[1727873832904,0.328645,60856.0,60842.0,0.076]
[1727873833177,0.105367,60850.0,60843.0,0.345956]
[1727873833410,0.105367,60850.0,60843.0,0.1816]
[1727873833630,0.105367,60850.0,60843.0,0.347957]
[1727873834039,0.164346,60848.0,60843.0,0.1836]
[1727873834245,0.105367,60850.0,60843.0,0.1836]
[1727873834465,0.164342,60849.0,60843.0,0.1836]
[1727873834688,0.164342,60849.0,60843.0,0.1816]
[1727873834895,0.105367,60850.0,60843.0,0.50158038]
[1727873835120,0.105367,60850.0,60843.0,0.33722438]
[1727873835315,0.328699,60846.0,60843.0,0.1816]
[1727873835533,0.164354,60844.0,60843.0,0.1886]
[1727873835938,0.164354,60844.0,60843.0,0.1876]
[1727873836358,0.164354,60844.0,60843.0,0.1731]
[1727873836787,0.165354,60844.0,60843.0,0.1831]
[1727873837708,0.165354,60844.0,60843.0,0.1771]
[1727873838115,0.166354,60844.0,60843.0,0.1831]
[1727873838813,0.166354,60844.0,60843.0,0.30903]
[1727873838814,0.002,60844.0,60843.0,0.30903]
[1727873838999,0.002,60844.0,60843.0,0.37030505]
[1727873839219,0.002,60844.0,60843.0,0.1831]
[1727873839936,0.002,60844.0,60843.0,0.347457]
[1727873840374,0.002,60844.0,60843.0,0.016]
[1727873840623,0.02777177,60844.0,60843.0,0.0156]
[1727873840859,0.02777177,60844.0,60843.0,0.0152]
[1727873841081,0.02777177,60844.0,60843.0,0.07053697]
[1727873841299,0.02777177,60844.0,60843.0,0.23489397]
[1727873841509,0.02777177,60844.0,60843.0,0.22839397]
[1727873841510,0.02677177,60844.0,60843.0,0.22839397]
[1727873841726,0.02577177,60844.0,60843.0,0.21949397]
[1727873841946,0.02777177,60844.0,60843.0,0.18054365]
[1727873842166,0.02777177,60844.0,60843.0,0.19803115]
[1727873842385,0.02777177,60844.0,60843.0,0.18443115]
[1727873842386,0.02677177,60844.0,60843.0,0.18443115]
[1727873842600,0.02777177,60844.0,60843.0,0.19023115]
[1727873842814,0.02877177,60844.0,60843.0,0.20023115]
[1727873843032,0.02877177,60844.0,60843.0,0.35511297]
[1727873843033,0.02677177,60844.0,60843.0,0.35511297]
[1727873843253,0.02777177,60844.0,60843.0,0.36461297]
[1727873843538,0.19212577,60844.0,60843.0,0.0159]
[1727873843760,0.19212577,60844.0,60843.0,0.0158]
[1727873843976,0.19212577,60844.0,60843.0,0.0157]
[1727873844193,0.19212577,60844.0,60843.0,0.0153]
[1727873844413,0.19112577,60844.0,60843.0,0.0099]
[1727873844630,0.02677177,60844.0,60843.0,0.0097]
[1727873844866,0.02777177,60844.0,60843.0,0.0145]
[1727873845078,0.02777177,60844.0,60843.0,0.0143]
[1727873845499,0.02777177,60844.0,60843.0,0.0141]
[1727873845715,0.02777177,60844.0,60843.0,0.178457]
[1727873846143,0.02777177,60844.0,60843.0,0.0141]
[1727873846365,0.19212577,60844.0,60843.0,0.0141]
[1727873846585,0.02777177,60844.0,60843.0,0.0141]
[1727873847316,0.002,60844.0,60843.0,0.0141]
[1727873848039,0.002,60844.0,60843.0,0.01492]
[1727873848285,0.00364,60844.0,60843.0,0.01492]
[1727873848804,0.00364,60844.0,60843.0,0.179277]
[1727873849072,0.00364,60844.0,60843.0,0.34415882]
[1727873849863,0.24486798,60876.0,60843.0,0.7012898]
[1727873850413,0.24486798,60859.0,60858.0,0.241616]
[1727873850416,0.24486798,60859.0,60858.0,0.274536]
[1727873850656,0.24486798,60859.0,60858.0,0.416416]
[1727873850907,0.02576725,60863.0,60861.0,0.243108]
[1727873851171,0.02576725,60863.0,60861.0,0.52382629]
[1727873851409,0.24486798,60869.0,60868.0,0.70160729]
[1727873851651,0.24486798,60876.0,60875.0,0.241371]
[1727873851898,0.24486798,60876.0,60875.0,0.69958929]
[1727873852159,0.0257596,60880.0,60879.0,0.16426]
[1727873852429,0.0257596,60880.0,60879.0,0.29999033]
[1727873852699,0.24486798,60892.0,60891.0,0.164227]
[1727873853206,0.24486798,60892.0,60890.0,0.164229]
[1727873853497,0.04883833,60892.0,60891.0,0.492682]
[1727873853775,0.12139532,60897.0,60891.0,0.11051456]
[1727873853776,0.04883833,60894.0,60891.0,0.11051456]
[1727873854054,0.04883833,60893.0,60890.0,0.0771]
[1727873854549,0.07458951,60893.0,60891.0,0.004]
[1727873854824,0.02575118,60893.0,60892.0,0.164225]
[1727873855108,0.02575118,60893.0,60890.0,0.405559]
[1727873855109,0.02575118,60893.0,60890.0,0.0771]
[1727873855606,0.02575118,60893.0,60892.0,0.164225]
[1727873855873,0.12286744,60893.0,60892.0,0.164225]
[1727873856119,0.09760206,60895.0,60893.0,0.328444]
[1727873856356,0.09760206,60895.0,60894.0,0.16750281]
[1727873856600,0.12139532,60897.0,60895.0,0.03292]
[1727873856601,0.0731936,60897.0,60895.0,0.03292]
[1727873856842,0.0731936,60897.0,60896.0,0.2004177]
[1727873857112,0.09760206,60899.0,60897.0,0.197131]
[1727873857113,0.0731936,60898.0,60897.0,0.197131]
[1727873857374,0.0731936,60900.0,60898.0,0.44560011]
[1727873857648,0.09924206,60901.0,60900.0,0.164203]
[1727873857966,0.00164,60901.0,60900.0,0.60499927]
[1727873858151,0.05042856,60901.0,60900.0,0.60499927]
[1727873858412,0.14567439,60922.0,60910.0,0.0763]
[1727873858654,0.001638,60923.0,60919.0,0.44487029]
[1727873859202,0.001638,60923.0,60919.0,0.36859769]
[1727873859456,0.001638,60923.0,60922.0,0.197064]
[1727873859740,0.001638,60923.0,60922.0,0.199064]
[1727873859999,0.001638,60923.0,60922.0,0.21091732]
[1727873860802,0.001638,60923.0,60922.0,0.20891732]
[1727873861038,0.001638,60923.0,60922.0,0.53986603]
[1727873861538,0.001638,60923.0,60922.0,0.36417158]
[1727873861779,0.001638,60923.0,60922.0,0.54286603]
[1727873862392,0.001638,60923.0,60922.0,0.54786603]
[1727873862633,0.02737072,60923.0,60922.0,0.56386603]
[1727873863131,0.02737072,60923.0,60922.0,0.54986603]
[1727873863373,0.02737072,60923.0,60922.0,0.56286603]
[1727873863847,0.02737072,60923.0,60922.0,0.54986603]
[1727873864342,0.24486798,60939.0,60938.0,0.164101]
[1727873864585,0.24486798,60939.0,60931.0,0.0789]
[1727873864586,0.164114,60933.0,60931.0,0.0789]
[1727873864843,0.24486798,60946.0,60931.0,0.0789]
[1727873865073,0.164115,60933.0,60931.0,0.0789]
[1727873865300,0.164117,60932.0,60931.0,0.0789]
[1727873865543,0.164117,60932.0,60931.0,0.1112768]
[1727873865833,0.164114,60933.0,60931.0,0.1112768]
[1727873866054,0.16411,60935.0,60931.0,0.1112768]
[1727873866288,0.164112,60934.0,60931.0,0.1112768]
[1727873866762,0.164114,60933.0,60931.0,0.1112768]
[1727873866998,0.164114,60933.0,60932.0,0.02754048]
[1727873867232,0.23698764,60933.0,60932.0,0.02754048]
[1727873867473,0.09860797,60933.0,60932.0,0.02754048]
[1727873868164,0.07287364,60933.0,60932.0,0.02754048]
[1727873868389,0.09719679,60933.0,60932.0,0.19165748]
[1727873868843,0.09719679,60934.0,60933.0,0.164114]
[1727873869065,0.12152684,60935.0,60934.0,0.164111]
[1727873869292,0.07284295,60935.0,60933.0,0.328228]
[1727873869536,0.07284295,60935.0,60934.0,0.27231076]
[1727873869764,0.07284295,60935.0,60934.0,0.10819976]
[1727873870021,0.16411,60935.0,60932.0,0.006]
[1727873870278,0.04856454,60936.0,60934.0,0.16411]
[1727873870542,0.04856454,60935.0,60932.0,0.328233]
[1727873870802,0.04856454,60935.0,60933.0,0.07677558]
[1727873871055,0.04856454,60937.0,60933.0,0.24088858]
[1727873871284,0.02573347,60936.0,60935.0,0.164109]
[1727873871524,0.02573347,60936.0,60935.0,0.1673908]
[1727873872686,0.02573347,60936.0,60935.0,0.1743908]
[1727873873142,0.02573347,60936.0,60935.0,0.41925878]
[1727873873416,0.02573347,60936.0,60935.0,0.171109]
[1727873873674,0.02573347,60936.0,60935.0,0.3624343]
[1727873873902,0.02573347,60936.0,60935.0,0.3674343]
[1727873874134,0.02573347,60936.0,60935.0,0.18177902]
[1727873874406,0.02573347,60936.0,60935.0,0.34588802]
[1727873874681,0.02573347,60936.0,60935.0,0.34088802]
[1727873874920,0.02573347,60936.0,60935.0,0.34588802]
[1727873875142,0.02573347,60936.0,60935.0,0.35988802]
[1727873875346,0.0485471,60944.0,60936.0,0.164106]
[1727873875559,0.164093,60941.0,60937.0,0.12970563]
[1727873875760,0.0485471,60945.0,60937.0,0.14106185]
[1727873875999,0.492259,60944.0,60938.0,0.1641]
[1727873876222,0.164091,60942.0,60938.0,0.01134747]
[1727873876444,0.328177,60943.0,60938.0,0.01134747]
[1727873876665,0.164098,60939.0,60938.0,0.01134747]
[1727873876877,0.164106,60936.0,60935.0,0.006]
[1727873877083,0.164106,60936.0,60931.0,0.2753968]
[1727873877321,0.164106,60936.0,60933.0,0.24486798]
[1727873877520,0.16411,60935.0,60932.0,0.12126151]
[1727873877767,0.24486798,60947.0,60932.0,0.12126151]
[1727873878008,0.1641,60939.0,60932.0,0.12126151]
[1727873878247,0.164109,60935.0,60932.0,0.12126151]
[1727873878486,0.164109,60935.0,60933.0,0.07259063]
[1727873878736,0.328189,60941.0,60931.0,0.001]
[1727873878991,0.164117,60932.0,60931.0,0.001]
[1727873879679,0.164138,60924.0,60923.0,0.078019]
[1727873880134,0.164138,60925.0,60923.0,0.078019]
[1727873880360,0.164138,60925.0,60924.0,0.0322887]
[1727873880837,0.328255,60929.0,60924.0,0.0322887]
[1727873881228,0.328229,60934.0,60927.0,0.16413]
[1727873881449,0.164122,60930.0,60925.0,0.164134]
[1727873881689,0.328232,60933.0,60925.0,0.0883449]
[1727873881909,0.001,60932.0,60927.0,0.28071829]
[1727873882179,0.24486798,60938.0,60931.0,0.28071829]
[1727873882405,0.328211,60937.0,60931.0,0.28071829]
[1727873882647,0.001,60934.0,60933.0,0.164114]
[1727873882871,0.02573423,60937.0,60932.0,0.40553903]
[1727873883095,0.02573423,60937.0,60932.0,0.07730903]
[1727873883308,0.02573423,60937.0,60935.0,0.164107]
[1727873883520,0.02573423,60937.0,60936.0,0.24914223]
[1727873883750,0.02673423,60937.0,60936.0,0.52986052]
[1727873883980,0.001,60937.0,60936.0,0.52986052]
[1727873885332,0.001636,60942.0,60937.0,0.328206]
[1727873885551,0.001636,60942.0,60939.0,0.164098]
[1727873885781,0.001636,60942.0,60938.0,0.10589999]
[1727873886043,0.001636,60942.0,60941.0,0.44481129]
[1727873886273,0.001636,60942.0,60941.0,0.61150574]
[1727873886491,0.001636,60942.0,60941.0,0.64442574]
[1727873886703,0.001636,60942.0,60941.0,0.80930756]
[1727873887344,0.001636,60942.0,60941.0,0.91430756]
[1727873887597,0.001636,60942.0,60941.0,0.99920756]
[1727873887822,0.001636,60942.0,60941.0,0.73451311]
[1727873888467,0.001636,60942.0,60941.0,0.89920756]
[1727873888727,0.001636,60942.0,60941.0,0.90620756]
[1727873888940,0.001636,60942.0,60941.0,0.99420756]
[1727873889166,0.001636,60942.0,60941.0,1.01020756]
[1727873889379,0.24650598,60954.0,60941.0,1.01020756]
[1727873889380,0.001638,60954.0,60953.0,0.52547829]
[1727873889593,0.001638,60954.0,60953.0,0.84715297]
[1727873889803,0.24597438,60963.0,60962.0,0.164036]
[1727873890225,0.0011064,60963.0,60962.0,0.164036]
[1727873890440,0.02682669,60963.0,60962.0,0.164036]
[1727873890648,0.02682669,60963.0,60962.0,0.11009193]
[1727873891073,0.02682669,60963.0,60957.0,0.164049]
[1727873891308,0.02682669,60963.0,60954.0,0.40892498]
[1727873891517,0.02682669,60963.0,60954.0,0.24486798]
[1727873891518,0.16404,60961.0,60954.0,0.24486798]
[1727873891726,0.02682669,60963.0,60954.0,0.40892598]
[1727873891940,0.02682669,60963.0,60956.0,0.164052]
[1727873892155,0.02682669,60963.0,60957.0,0.13118372]
[1727873892156,0.19086169,60963.0,60957.0,0.13118372]
[1727873892377,0.02682669,60963.0,60957.0,0.13118372]
[1727873892601,0.164037,60962.0,60957.0,0.13118372]
[1727873893032,0.19086069,60963.0,60957.0,0.13118372]
[1727873893241,0.02682669,60963.0,60958.0,0.10862841]
[1727873893700,0.19086069,60963.0,60958.0,0.10862841]
[1727873893978,0.164039,60961.0,60958.0,0.10862841]
[1727873894195,0.164039,60961.0,60957.0,0.13318372]
[1727873894196,0.164047,60958.0,60957.0,0.002]
[1727873894414,0.02682669,60963.0,60957.0,0.002]
[1727873894632,0.164047,60958.0,60957.0,0.002]
[1727873895053,0.00201569,60960.0,60943.0,0.0767]
[1727873895294,0.164057,60955.0,60948.0,0.0321568]
[1727873895504,0.164057,60955.0,60943.0,0.0767]
[1727873895719,0.00201569,60957.0,60943.0,0.0767]
[1727873895926,0.0011064,60963.0,60943.0,0.0767]
[1727873895927,0.328093,60959.0,60943.0,0.0767]
[1727873896137,0.02572782,60954.0,60943.0,0.404875]
[1727873896347,0.02572782,60954.0,60943.0,0.240786]
[1727873896590,0.02572782,60954.0,60944.0,0.164084]
[1727873896808,0.02572782,60954.0,60948.0,0.00328119]
[1727873897019,0.02572782,60954.0,60952.0,0.164063]
[1727873897669,0.02736382,60954.0,60952.0,0.164063]
[1727873897884,0.02736382,60954.0,60952.0,0.492188]
[1727873898092,0.02736382,60954.0,60953.0,0.06851591]
[1727873898318,0.02736382,60954.0,60953.0,0.22929506]
[1727873899220,0.02736382,60954.0,60953.0,0.23229506]
[1727873899696,0.02736382,60954.0,60953.0,0.22929506]
[1727873899903,0.02736382,60954.0,60953.0,0.23929506]
[1727873900115,0.02736382,60954.0,60953.0,0.23529506]
[1727873900805,0.02736382,60954.0,60953.0,0.22929506]
[1727873901241,0.02736382,60954.0,60953.0,0.06523506]
[1727873901474,0.02736382,60954.0,60951.0,0.164065]
[1727873901697,0.02736382,60954.0,60953.0,0.02]
[1727873901946,0.02736382,60954.0,60953.0,0.18406]
[1727873902373,0.02736382,60954.0,60953.0,0.17306]
[1727873902588,0.02736382,60954.0,60953.0,0.009]
[1727873902802,0.02736382,60954.0,60953.0,0.0698203]
[1727873903220,0.02736382,60954.0,60953.0,0.0868203]
[1727873903221,0.001636,60954.0,60953.0,0.0868203]
[1727873903460,0.165694,60954.0,60953.0,0.017]
[1727873903678,0.165694,60954.0,60953.0,0.009]
[1727873903898,0.165694,60954.0,60953.0,0.016]
[1727873904355,0.165694,60954.0,60953.0,0.009]
[1727873904803,0.001636,60954.0,60943.0,0.328175]
[1727873905056,0.001636,60954.0,60948.0,0.24486798]
[1727873905057,0.00565169,60954.0,60948.0,0.24486798]
[1727873905256,0.00565169,60954.0,60944.0,0.2574989]
[1727873905257,0.164065,60952.0,60945.0,0.164081]
[1727873905516,0.001636,60954.0,60946.0,0.164079]
[1727873905737,0.164061,60953.0,60947.0,0.164076]
[1727873905955,0.164061,60953.0,60944.0,0.0934149]
[1727873905956,0.00201569,60953.0,60944.0,0.2574989]
[1727873906187,0.328142,60950.0,60944.0,0.0934149]
[1727873906413,0.00201569,60949.0,60945.0,0.24486798]
[1727873906628,0.1,60949.0,60945.0,0.24486798]
[1727873906887,0.164081,60946.0,60940.0,0.164095]
[1727873907316,0.164081,60946.0,60938.0,0.40896698]
[1727873907317,0.164085,60944.0,60938.0,0.40896698]
[1727873907559,0.32815,60948.0,60940.0,0.03292]
[1727873907770,0.02573035,60945.0,60944.0,0.164085]
[1727873907984,0.02573035,60945.0,60940.0,0.03292]
[1727873908458,0.02573035,60945.0,60944.0,0.004]
[1727873908673,0.02573035,60945.0,60940.0,0.164095]
[1727873908911,0.02573035,60945.0,60940.0,0.197015]
[1727873909156,0.02573035,60945.0,60944.0,0.008]
[1727873909399,0.02573035,60945.0,60944.0,0.02558547]
[1727873909400,0.18981235,60945.0,60944.0,0.02558547]
[1727873909639,0.18981235,60945.0,60944.0,0.008]
[1727873909852,0.164089,60943.0,60940.0,0.000818]
[1727873910089,0.328171,60944.0,60940.0,0.000818]
[1727873910326,0.328171,60944.0,60940.0,0.014818]
[1727873910567,0.328171,60944.0,60940.0,0.008818]
[1727873911049,0.164093,60941.0,60940.0,0.008818]
[1727873912205,0.16409,60942.0,60940.0,0.000818]
[1727873912432,0.264082,60945.0,60944.0,0.004]
[1727873913136,0.164086,60944.0,60940.0,0.000818]
[1727873913387,0.164091,60942.0,60940.0,0.001818]
[1727873913626,0.164087,60943.0,60940.0,0.008818]
[1727873913868,0.164091,60942.0,60940.0,0.000818]
[1727873914395,0.328121,60953.0,60940.0,0.000818]
[1727873914634,0.24486798,60961.0,60941.0,0.16409]
[1727873914635,0.164077,60947.0,60941.0,0.16409]
[1727873914885,0.1,60949.0,60943.0,0.164087]
[1727873915116,0.1,60949.0,60941.0,0.328185]
[1727873915117,0.164081,60946.0,60941.0,0.164091]
[1727873915371,0.16609769,60945.0,60944.0,0.004]
[1727873915623,0.1,60941.0,60940.0,0.000818]
[1727873915868,0.26610869,60941.0,60940.0,0.004818]
[1727873916351,0.30868364,60941.0,60940.0,0.000818]
[1727873917061,0.30868364,60941.0,60940.0,0.003818]
[1727873917591,0.30868364,60941.0,60940.0,0.004818]
[1727873917834,0.28294855,60941.0,60940.0,0.004818]
[1727873920175,0.26610869,60941.0,60940.0,0.004818]
[1727873920409,0.28303299,60941.0,60940.0,0.004818]
[1727873922109,0.36133299,60941.0,60940.0,0.003818]
[1727873922360,0.38495427,60941.0,60940.0,0.001818]
[1727873922618,0.38405427,60941.0,60940.0,0.001818]
[1727873923097,0.38605427,60941.0,60940.0,0.002818]
[1727873923338,0.38605427,60941.0,60940.0,0.001818]
[1727873923339,0.38585427,60941.0,60940.0,0.001818]
[1727873923594,0.38349657,60941.0,60940.0,0.000818]
[1727873923836,0.38349657,60941.0,60940.0,0.001818]
[1727873923837,0.38339657,60941.0,60940.0,0.001818]
[1727873924116,0.38319657,60941.0,60940.0,0.001818]
[1727873924364,0.20659657,60941.0,60940.0,0.001818]
[1727873924927,0.20619657,60941.0,60940.0,0.001818]
[1727873925139,0.20619657,60941.0,60940.0,0.000818]
[1727873925140,0.20599657,60941.0,60940.0,0.000818]
[1727873925392,0.05580357,60941.0,60940.0,0.001818]
[1727873925642,0.06180357,60941.0,60940.0,0.002818]
[1727873925900,0.04220357,60941.0,60940.0,0.20867839]
[1727873926209,0.03383697,60941.0,60940.0,0.60822745]
[1727873926406,0.24650398,60954.0,60953.0,0.19698]
[1727873926684,0.24610398,60954.0,60953.0,0.46669045]
[1727873926926,0.000936,60954.0,60953.0,0.46669045]
[1727873927710,0.000936,60954.0,60953.0,0.28008]
[1727873928006,0.000936,60954.0,60953.0,0.36895845]
[1727873928204,0.000936,60954.0,60953.0,0.0831]
[1727873928475,0.000936,60954.0,60946.0,0.079]
[1727873928704,0.164063,60952.0,60948.0,0.40894198]
[1727873928963,0.328127,60952.0,60947.0,0.01078417]
[1727873929224,0.164068,60950.0,60949.0,0.01076669]
[1727873929438,0.164071,60949.0,60948.0,0.01077543]
[1727873929655,0.02572723,60951.0,60946.0,0.087]
[1727873929876,0.164076,60947.0,60946.0,0.008]
[1727873930098,0.328139,60950.0,60938.0,0.4103]
[1727873930099,0.01703884,60950.0,60938.0,0.410301]
[1727873930312,0.164074,60948.0,60947.0,0.014]
[1727873930537,0.1810592,60948.0,60947.0,0.014]
[1727873931664,0.1810592,60948.0,60947.0,0.004]
[1727873931896,0.0169852,60948.0,60947.0,0.164076]
[1727873932148,0.0169852,60948.0,60944.0,0.328165]
[1727873932398,0.164069,60950.0,60947.0,0.0831421]
[1727873932719,0.164074,60948.0,60947.0,0.0841421]
[1727873932989,0.164074,60948.0,60947.0,0.001]
[1727873933253,0.164074,60948.0,60947.0,0.005]
[1727873933254,0.18108305,60948.0,60947.0,0.005]
[1727873933521,0.328156,60947.0,60940.0,0.000818]
[1727873933770,0.328156,60947.0,60944.0,0.004]
[1727873933771,0.18109005,60946.0,60944.0,0.004]
[1727873933971,0.18109105,60945.0,60944.0,0.004]
[1727873934260,0.01700905,60945.0,60944.0,0.004]
[1727873934514,0.04273857,60945.0,60944.0,0.004]
[1727873935004,0.04273857,60945.0,60944.0,0.164085]
[1727873935243,0.04273857,60945.0,60942.0,0.164089]
[1727873935496,0.01700905,60944.0,60943.0,0.164086]
[1727873935751,0.01700905,60944.0,60942.0,0.16409]
[1727873935989,0.001,60945.0,60943.0,0.0936314]
[1727873936209,0.0170048,60944.0,60943.0,0.0936314]
[1727873936692,0.0180048,60944.0,60943.0,0.1026314]
[1727873936936,0.001,60945.0,60943.0,0.1026314]
[1727873936937,0.001,60945.0,60943.0,0.0936314]
[1727873937168,0.001,60945.0,60944.0,0.07578124]
[1727873937424,0.001,60945.0,60944.0,0.24314753]
[1727873937697,0.001,60945.0,60944.0,0.23986624]
[1727873937960,0.000936,60954.0,60948.0,0.03292]
[1727873938230,0.000936,60954.0,60943.0,0.0936314]
[1727873938231,0.002,60945.0,60943.0,0.015]
[1727873938462,0.164085,60944.0,60943.0,0.015]
[1727873938721,0.164093,60941.0,60938.0,0.0821]
[1727873938949,0.18108528,60941.0,60938.0,0.0821]
[1727873939415,0.164093,60941.0,60938.0,0.0821]
[1727873939674,0.20714785,60941.0,60940.0,0.01166339]
[1727873940207,0.20714785,60941.0,60940.0,0.000818]
[1727873940694,0.20714785,60941.0,60940.0,0.0255205]
[1727873940936,0.0257313,60941.0,60940.0,0.1896155]
[1727873941177,0.0257313,60941.0,60940.0,0.23656665]
[1727873941425,0.0257313,60941.0,60940.0,0.5423109]
[1727873941697,0.0257313,60941.0,60940.0,0.70372383]
[1727873942446,0.0257313,60941.0,60940.0,0.22636513]
[1727873942715,0.1898243,60941.0,60940.0,0.06227013]
[1727873942933,0.20724178,60941.0,60940.0,0.03756763]
[1727873943161,0.20724178,60941.0,60940.0,0.026818]
[1727873943162,0.01741748,60941.0,60940.0,0.026818]
[1727873943369,0.01741748,60941.0,60940.0,0.03756763]
[1727873943590,0.16409,60942.0,60940.0,0.03756763]
[1727873943802,0.16409,60942.0,60940.0,0.08564809]
[1727873944044,0.164093,60941.0,60940.0,0.08564809]
[1727873944297,0.18152593,60941.0,60940.0,0.03756763]
[1727873944552,0.18152593,60941.0,60940.0,0.014818]
[1727873944779,0.18152593,60941.0,60940.0,0.026818]
[1727873945000,0.18152593,60941.0,60940.0,0.012818]
[1727873945238,0.18152593,60941.0,60940.0,0.025818]
[1727873945490,0.18152593,60941.0,60940.0,0.000818]
[1727873945721,0.18252593,60941.0,60940.0,0.013818]
[1727873945953,0.18252593,60941.0,60940.0,0.027818]
[1727873946664,0.18252593,60941.0,60940.0,0.03856763]
[1727873947423,0.01843293,60941.0,60940.0,0.027818]
[1727873947939,0.18252593,60941.0,60940.0,0.03856763]
[1727873948187,0.18154533,60941.0,60940.0,0.01156763]
[1727873948407,0.18154533,60941.0,60940.0,0.000818]
[1727873948619,0.18154533,60941.0,60940.0,0.008818]
[1727873949066,0.18254533,60941.0,60940.0,0.023818]
[1727873950423,0.18154533,60941.0,60940.0,0.016818]
[1727873950635,0.20727734,60941.0,60940.0,0.016818]
[1727873950883,0.20827734,60941.0,60940.0,0.023818]
[1727873951313,0.20824901,60941.0,60940.0,0.023818]
[1727873953103,0.182517,60941.0,60940.0,0.023818]
[1727873954412,0.165093,60941.0,60940.0,0.023818]
[1727873954646,0.18254178,60941.0,60940.0,0.023818]
[1727873954868,0.01844878,60941.0,60940.0,0.023818]
[1727873955301,0.01844878,60941.0,60940.0,0.28073711]
[1727873956220,0.04417938,60941.0,60940.0,0.28073711]
[1727873957326,0.04417938,60941.0,60940.0,0.11664211]
[1727873957540,0.01844878,60941.0,60940.0,0.11664211]
[1727873957751,0.01847464,60941.0,60940.0,0.28073711]
[1727873958693,0.01847464,60941.0,60940.0,0.11664211]
[1727873959125,0.01847464,60941.0,60940.0,0.28073711]
[1727873959339,0.001,60941.0,60940.0,0.28073711]
[1727873959996,0.001,60941.0,60940.0,0.11664211]
[1727873960215,0.165093,60941.0,60940.0,0.11664211]
[1727873960428,0.001,60941.0,60940.0,0.11664211]
[1727873960639,0.02673079,60941.0,60940.0,0.19597545]
[1727873960870,0.02673079,60941.0,60940.0,0.03188045]
[1727873961959,0.02673079,60941.0,60940.0,0.19597545]
[1727873962432,0.02673079,60941.0,60940.0,0.19925698]
[1727873962659,0.001,60941.0,60940.0,0.19925698]
[1727873962870,0.001,60941.0,60940.0,0.31281954]
[1727873964030,0.001,60941.0,60940.0,0.31610101]
[1727873964292,0.001,60941.0,60940.0,0.42762101]
[1727873964504,0.001,60941.0,60940.0,0.42433954]
[1727873964715,0.001,60941.0,60940.0,0.42834699]